bitfinex/quotes_BTCUSD_20240818
["timestamp","ask_amount","ask_price","bid_price","bid_amount"]
[1723970144638,0.00824,59753.0,59752.0,0.51162333]
[1723970145786,0.00824,59753.0,59752.0,0.51162907]
[1723970146117,0.125388,59753.0,59752.0,0.51162907]
[1723970146281,0.00824,59753.0,59752.0,0.10540972]
[1723970146478,0.00824,59753.0,59752.0,0.02580972]
[1723970146479,0.125388,59753.0,59752.0,0.02580972]
[1723970146881,0.359685,59753.0,59752.0,0.02580972]
[1723970147609,0.593982,59753.0,59752.0,0.02580972]
[1723970148010,0.359685,59753.0,59752.0,0.02580972]
[1723970149624,0.419985,59753.0,59752.0,1.52580972]
[1723970149828,0.419985,59753.0,59752.0,1.505]
[1723970150025,0.359685,59753.0,59752.0,1.52581573]
[1723970150345,0.359685,59753.0,59752.0,1.505]
[1723970150549,0.359685,59753.0,59752.0,1.52581604]
[1723970151316,0.359685,59753.0,59752.0,1.60251604]
[1723970153901,0.125388,59753.0,59752.0,1.60251604]
[1723970154218,0.125388,59753.0,59752.0,1.6025151]
[1723970156882,0.00824,59753.0,59752.0,1.6025151]
[1723970157265,0.125388,59753.0,59752.0,1.65258876]
[1723970158011,0.125388,59753.0,59752.0,1.6025151]
[1723970158183,0.125388,59753.0,59752.0,1.65258888]
[1723970159337,0.00824,59753.0,59752.0,1.65258888]
[1723970159531,0.00824,59753.0,59752.0,1.71528888]
[1723970160154,0.00824,59753.0,59752.0,1.66521522]
[1723970160673,0.125388,59753.0,59752.0,1.66521522]
[1723970161337,0.125388,59753.0,59752.0,1.6652152]
[1723970161710,0.125388,59753.0,59752.0,1.6444]
[1723970162034,0.125388,59753.0,59752.0,1.66521518]
[1723970162211,0.125388,59753.0,59752.0,1.70013525]
[1723970163320,0.125388,59753.0,59752.0,1.77532156]
[1723970165225,0.125388,59753.0,59752.0,2.1466643]
[1723970166264,0.359685,59753.0,59752.0,2.0072643]
[1723970167743,0.45526024,59753.0,59752.0,2.0072643]
[1723970167941,0.68955724,59753.0,59752.0,1.97234423]
[1723970168155,0.68955724,59753.0,59752.0,1.60100149]
[1723970168428,0.68955724,59753.0,59752.0,1.52581518]
[1723970168429,0.76965724,59753.0,59752.0,1.52581518]
[1723970169263,0.76965724,59753.0,59752.0,1.58018631]
[1723970169464,0.76965724,59753.0,59752.0,1.60100234]
[1723970170263,0.76965724,59753.0,59752.0,1.97235173]
[1723970171307,0.76965724,59753.0,59752.0,1.97241735]
[1723970173576,0.76965724,59753.0,59752.0,1.97241476]
[1723970174553,0.76965724,59753.0,59752.0,1.9724027]
[1723970174765,0.76965724,59753.0,59752.0,1.89716282]
[1723970174946,0.76965724,59753.0,59752.0,0.39716282]
[1723970175143,0.76965724,59753.0,59752.0,0.47240302]
[1723970175369,0.76965724,59753.0,59752.0,0.39716282]
[1723970175945,0.76965724,59753.0,59752.0,0.39716266]
[1723970176145,0.76965724,59753.0,59752.0,0.43207355]
[1723970177937,0.76965724,59753.0,59752.0,0.43207416]
[1723970178179,0.76965724,59753.0,59752.0,0.39716049]
[1723970180527,0.76965724,59753.0,59752.0,0.39716275]
[1723970181822,0.76965724,59753.0,59752.0,0.37635148]
[1723970181975,0.76965724,59753.0,59752.0,0.39716609]
[1723970182181,0.85115724,59753.0,59752.0,0.39716609]
[1723970182385,0.91105724,59753.0,59752.0,0.47244014]
[1723970182585,0.91105724,59753.0,59752.0,0.02581461]
[1723970184098,0.75375724,59753.0,59752.0,0.02581461]
[1723970184620,0.45526024,59753.0,59752.0,0.02581461]
[1723970184849,0.45526024,59753.0,59752.0,0.61575027]
[1723970185048,0.45526024,59753.0,59752.0,0.54047622]
[1723970185251,0.45526024,59753.0,59752.0,0.5404671]
[1723970185761,0.45526024,59753.0,59752.0,0.57538547]
[1723970185979,0.22096324,59753.0,59752.0,0.61284897]
[1723970186173,0.22096324,59753.0,59752.0,2.11284764]
[1723970186353,0.22096324,59753.0,59752.0,2.01248392]
[1723970186622,0.45526024,59753.0,59752.0,2.01248392]
[1723970186829,0.45526024,59753.0,59752.0,2.01248387]
[1723970188639,0.45526024,59753.0,59752.0,2.01247161]
[1723970189226,0.45526024,59753.0,59752.0,2.13792812]
[1723970189545,0.45526024,59753.0,59752.0,2.01247161]
[1723970189752,0.45526024,59753.0,59752.0,2.13794685]
[1723970190760,0.45526024,59753.0,59752.0,2.05754685]
[1723970190955,0.22096324,59753.0,59752.0,2.20464685]
[1723970191357,0.22096324,59753.0,59752.0,2.20467629]
[1723970192030,0.22096324,59753.0,59752.0,2.07916776]
[1723970192848,0.125388,59753.0,59752.0,2.07916776]
[1723970193055,0.00824,59753.0,59752.0,2.07916776]
[1723970193257,0.00824,59753.0,59752.0,2.19631776]
[1723970193502,0.00824,59753.0,59752.0,2.8667406]
[1723970194357,0.00824,59753.0,59752.0,2.8110054]
[1723970194579,0.00824,59753.0,59752.0,2.86672507]
[1723970194983,0.00824,59753.0,59752.0,3.10102607]
[1723970195594,0.00824,59753.0,59752.0,2.43058364]
[1723970196749,0.00824,59753.0,59752.0,2.66488464]
[1723970196934,0.00824,59753.0,59752.0,2.74638464]
[1723970197138,0.00824,59753.0,59752.0,3.10103042]
[1723970197384,0.00824,59753.0,59752.0,2.95042615]
[1723970197573,0.00824,59753.0,59752.0,3.11017305]
[1723970198229,0.00824,59753.0,59752.0,3.10096517]
[1723970198881,0.00824,59753.0,59752.0,3.0452455]
[1723970199079,0.00824,59753.0,59752.0,3.10096141]
[1723970200137,0.00824,59753.0,59752.0,3.18246141]
[1723970200284,0.00824,59753.0,59752.0,3.41676241]
[1723970200461,0.00824,59753.0,59752.0,3.4259205]
[1723970200664,0.00824,59753.0,59752.0,3.0411299]
[1723970200889,0.00824,59753.0,59752.0,3.2754309]
[1723970201293,0.00824,59753.0,59752.0,3.0411299]
[1723970201541,0.00824,59753.0,59752.0,3.19155396]
[1723970201719,0.00824,59753.0,59752.0,3.42585496]
[1723970202131,0.00824,59753.0,59752.0,3.19155396]
[1723970203009,0.00824,59753.0,59752.0,3.19155284]
[1723970203209,0.00824,59753.0,59752.0,3.18234645]
[1723970203612,0.00824,59753.0,59752.0,3.18232666]
[1723970204442,0.00824,59753.0,59752.0,3.41662766]
[1723970204688,0.00824,59753.0,59752.0,3.18232666]
[1723970206372,0.00824,59753.0,59752.0,3.0318873]
[1723970206784,0.00824,59753.0,59752.0,3.18232666]
[1723970207457,0.00824,59753.0,59752.0,3.18231613]
[1723970207656,0.00824,59753.0,59752.0,3.03187677]
[1723970208226,0.00824,59753.0,59752.0,3.18226839]
[1723970208469,0.00824,59753.0,59752.0,3.03186967]
[1723970208671,0.00824,59753.0,59752.0,2.74635458]
[1723970208896,0.00824,59753.0,59752.0,3.03187131]
[1723970209327,0.00824,59753.0,59752.0,2.51205358]
[1723970210864,0.00824,59753.0,59752.0,2.74635458]
[1723970211064,0.00824,59753.0,59752.0,2.51205358]
[1723970211525,0.00824,59753.0,59752.0,2.43055358]
[1723970211767,0.00824,59753.0,59752.0,2.4305257]
[1723970212158,0.00824,59753.0,59752.0,2.3748482]
[1723970212291,0.00824,59753.0,59752.0,2.430526]
[1723970213714,0.00824,59753.0,59752.0,2.130325]
[1723970215981,0.00824,59753.0,59752.0,2.0746472]
[1723970216161,0.00824,59753.0,59752.0,2.1303275]
[1723970218179,0.00824,59753.0,59752.0,2.0131775]
[1723970218353,0.125388,59753.0,59752.0,2.03219353]
[1723970218579,0.125388,59753.0,59752.0,2.03219824]
[1723970218754,0.125388,59753.0,59752.0,1.9319775]
[1723970220130,0.125388,59753.0,59752.0,2.03219824]
[1723970220485,0.125388,59753.0,59752.0,1.93199087]
[1723970220683,0.00824,59753.0,59752.0,1.93199087]
[1723970220888,0.00824,59753.0,59752.0,2.19424884]
[1723970221389,0.00824,59753.0,59752.0,2.06899087]
[1723970225500,0.00824,59753.0,59752.0,2.06900577]
[1723970227710,0.00824,59753.0,59752.0,2.06898031]
[1723970227961,0.00824,59753.0,59752.0,2.18613031]
[1723970228182,0.00824,59753.0,59752.0,2.50193131]
[1723970228388,0.00824,59753.0,59752.0,2.51113069]
[1723970228817,0.00824,59753.0,59752.0,2.01657969]
[1723970229019,0.125388,59753.0,59752.0,1.93198031]
[1723970229220,0.00824,59753.0,59752.0,2.05725841]
[1723970229394,0.00824,59753.0,59752.0,1.93198031]
[1723970229852,0.00824,59753.0,59752.0,2.03222616]
[1723970230024,0.00824,59753.0,59752.0,2.03225563]
[1723970230379,0.00824,59753.0,59752.0,1.93200914]
[1723970232019,0.09024,59753.0,59752.0,1.93200914]
[1723970232423,0.09024,59753.0,59752.0,2.05731725]
[1723970232622,0.00824,59753.0,59752.0,1.93200914]
[1723970233046,0.00824,59753.0,59752.0,2.05731725]
[1723970234586,0.00824,59753.0,59752.0,2.05733319]
[1723970235594,0.00824,59753.0,59752.0,2.17448319]
[1723970236539,0.00824,59753.0,59752.0,2.17449009]
[1723970236942,0.00824,59753.0,59752.0,2.17449048]
[1723970240440,0.00824,59753.0,59752.0,2.11881498]
[1723970240633,0.00824,59753.0,59752.0,2.17448489]
[1723970242754,0.00824,59753.0,59752.0,2.05733489]
[1723970243156,0.00824,59753.0,59752.0,0.02578306]
[1723970243157,0.83225724,59753.0,59752.0,0.02578306]
[1723970243514,0.926472,59753.0,59752.0,0.005]
[1723970243789,1.026472,59753.0,59752.0,0.005]
[1723970244305,1.01475724,59753.0,59752.0,0.005]
[1723970244514,1.24905424,59753.0,59752.0,0.005]
[1723970244718,1.16655424,59753.0,59752.0,0.005]
[1723970244923,1.16755424,59753.0,59752.0,0.005]
[1723970245130,1.16955424,59753.0,59752.0,0.005]
[1723970245552,1.16955424,59753.0,59752.0,0.004]
[1723970246042,1.17355424,59753.0,59752.0,0.004]
[1723970246225,1.17055424,59753.0,59752.0,0.004]
[1723970246419,0.11716,59747.0,59746.0,1.57517937]
[1723970246647,0.11716,59747.0,59746.0,1.96734893]
[1723970246648,0.54789657,59747.0,59746.0,1.96734893]
[1723970246850,0.54789657,59747.0,59746.0,1.52079052]
[1723970246851,0.78221757,59747.0,59746.0,1.52079052]
[1723970247052,0.78221757,59747.0,59746.0,1.57087478]
[1723970247805,0.78221757,59747.0,59746.0,1.57687478]
[1723970248218,0.78221757,59747.0,59746.0,1.57686975]
[1723970248559,0.78221757,59747.0,59746.0,1.57686966]
[1723970248676,0.78221757,59747.0,59746.0,1.57687061]
[1723970249092,0.78221757,59747.0,59746.0,1.55907914]
[1723970249296,0.78221757,59747.0,59746.0,1.57987078]
[1723970250477,0.78221757,59747.0,59746.0,0.02979164]
[1723970250771,0.79209038,59747.0,59746.0,0.02979164]
[1723970250995,0.79209038,59747.0,59746.0,1.52979164]
[1723970253091,0.54789657,59747.0,59746.0,1.52979164]
[1723970253433,0.451481,59747.0,59746.0,1.55906505]
[1723970253716,0.451481,59747.0,59746.0,1.57985604]
[1723970255176,0.451481,59747.0,59746.0,1.52979099]
[1723970255380,0.451481,59747.0,59746.0,1.57985604]
[1723970256209,0.451481,59747.0,59746.0,1.52979099]
[1723970256545,0.451481,59747.0,59746.0,1.57985604]
[1723970256889,0.451481,59747.0,59746.0,1.57984996]
[1723970257694,0.451481,59747.0,59746.0,1.55905928]
[1723970258044,0.451481,59747.0,59746.0,1.57984945]
[1723970260496,0.451481,59747.0,59746.0,1.57984706]
[1723970260698,0.451481,59747.0,59746.0,1.52979017]
[1723970260900,0.451481,59747.0,59746.0,1.57984714]
[1723970261103,0.451481,59747.0,59746.0,1.52979017]
[1723970262132,0.451481,59747.0,59746.0,1.55905934]
[1723970262308,0.451481,59747.0,59746.0,1.5297882]
[1723970262510,0.451481,59747.0,59746.0,1.57984798]
[1723970262707,0.451481,59747.0,59746.0,1.57984818]
[1723970263543,0.351481,59747.0,59746.0,1.57984818]
[1723970266397,0.352306,59747.0,59746.0,1.57984818]
[1723970266617,0.352306,59747.0,59746.0,1.57984809]
[1723970267145,0.352306,59747.0,59746.0,1.60487798]
[1723970267556,0.352306,59747.0,59746.0,1.97625003]
[1723970268477,0.352306,59747.0,59746.0,2.01112361]
[1723970269551,0.352306,59747.0,59746.0,1.61473445]
[1723970269818,0.352306,59747.0,59746.0,1.52978831]
[1723970270014,0.352306,59747.0,59746.0,1.57986087]
[1723970270283,0.352306,59747.0,59746.0,1.52978831]
[1723970271190,1.06476357,59747.0,59746.0,0.02978831]
[1723970272341,0.83044257,59747.0,59746.0,0.02978831]
[1723970275315,0.83044257,59747.0,59746.0,0.02979264]
[1723970278245,0.83044257,59747.0,59746.0,0.07988819]
[1723970278454,0.83044257,59747.0,59746.0,0.02979264]
[1723970278862,1.06476357,59747.0,59746.0,0.02979264]
[1723970282252,1.18044296,59747.0,59746.0,0.02979264]
[1723970282787,1.18044296,59747.0,59746.0,0.16258627]
[1723970282788,0.68304257,59747.0,59746.0,0.16258627]
[1723970283045,0.68304257,59747.0,59746.0,0.11249264]
[1723970283245,0.68304257,59747.0,59746.0,0.18765699]
[1723970283459,0.68304257,59747.0,59746.0,0.48388]
[1723970283583,0.68304257,59747.0,59746.0,2.05902664]
[1723970284232,0.68304257,59747.0,59746.0,2.05902813]
[1723970285392,0.68304257,59747.0,59746.0,1.9838791]
[1723970285579,0.68304257,59747.0,59746.0,1.98387461]
[1723970285917,0.68304257,59747.0,59746.0,0.53825331]
[1723970286120,0.68304257,59747.0,59746.0,0.55904207]
[1723970287382,0.68304257,59747.0,59746.0,0.48387522]
[1723970288215,0.68304257,59747.0,59746.0,0.58412568]
[1723970288620,0.68304257,59747.0,59746.0,0.58415211]
[1723970289876,0.68304257,59747.0,59746.0,0.58415216]
[1723970293186,0.68304257,59747.0,59746.0,0.60922051]
[1723970293818,0.68304257,59747.0,59746.0,0.48387876]
[1723970294025,0.68304257,59747.0,59746.0,0.46308995]
[1723970294245,0.68304257,59747.0,59746.0,0.48387628]
[1723970297398,0.68304257,59747.0,59746.0,1.98387628]
[1723970298229,0.44872157,59747.0,59746.0,1.98387644]
[1723970298406,0.44872157,59747.0,59746.0,2.10920459]
[1723970298583,0.44872157,59747.0,59746.0,2.0884181]
[1723970298785,0.44872157,59747.0,59746.0,1.98387514]
[1723970299435,0.68304257,59747.0,59746.0,1.98387514]
[1723970300508,0.68304257,59747.0,59746.0,0.48387514]
[1723970300928,0.68304257,59747.0,59746.0,1.98387514]
[1723970302581,0.68304257,59747.0,59746.0,1.96308423]
[1723970302763,0.68304257,59747.0,59746.0,1.98386419]
[1723970303555,0.68304257,59747.0,59746.0,2.10915775]
[1723970303886,0.68304257,59747.0,59746.0,1.98386419]
[1723970305121,0.68304257,59747.0,59746.0,0.48386419]
[1723970305745,0.68304257,59747.0,59746.0,1.98386419]
[1723970306896,0.68304257,59747.0,59746.0,1.98386398]
[1723970308633,0.68304257,59747.0,59746.0,2.01872214]
[1723970309017,0.68304257,59747.0,59746.0,2.01871889]
[1723970309215,0.68304257,59747.0,59746.0,1.98386177]
[1723970309800,0.44872157,59747.0,59746.0,1.98386177]
[1723970311029,0.44872157,59747.0,59746.0,1.98386482]
[1723970311826,0.44872157,59747.0,59746.0,1.98385542]
[1723970312620,0.44872157,59747.0,59746.0,2.01871728]
[1723970315330,0.44872157,59747.0,59746.0,2.01871681]
[1723970315877,0.44872157,59747.0,59746.0,0.51871681]
[1723970318806,0.21440057,59747.0,59746.0,0.51871681]
[1723970319365,0.21440057,59747.0,59746.0,0.5187288]
[1723970321152,0.21440057,59747.0,59746.0,0.51872273]
[1723970321757,0.44872157,59747.0,59746.0,0.51872273]
[1723970322728,0.44872157,59747.0,59746.0,1.96306876]
[1723970323005,0.44872157,59747.0,59746.0,2.01868234]
[1723970323573,0.44872157,59747.0,59746.0,1.96306876]
[1723970323772,0.44872157,59747.0,59746.0,1.64731343]
[1723970324295,0.44872157,59747.0,59746.0,2.01868186]
[1723970324841,0.44872157,59747.0,59746.0,2.01868171]
[1723970325048,0.44872157,59747.0,59746.0,1.64731298]
[1723970327295,0.44872157,59747.0,59746.0,2.01868006]
[1723970327725,0.44872157,59747.0,59746.0,1.96306708]
[1723970327901,0.82344257,59747.0,59746.0,0.52639554]
[1723970328614,0.90432108,59747.0,59746.0,0.50136403]
[1723970329198,0.82344257,59747.0,59746.0,0.40113617]
[1723970329402,0.58912157,59747.0,59746.0,0.52641612]
[1723970329639,0.44872157,59747.0,59746.0,0.52641612]
[1723970330025,0.68304257,59747.0,59746.0,0.40113617]
[1723970331856,0.68304257,59747.0,59746.0,0.40113941]
[1723970332058,0.44872157,59747.0,59746.0,0.40113941]
[1723970332545,0.68304257,59747.0,59746.0,0.40113941]
[1723970333718,0.82514257,59747.0,59746.0,0.40113941]
[1723970334484,0.44872157,59747.0,59746.0,0.40113941]
[1723970335795,0.44872157,59747.0,59746.0,0.38036708]
[1723970335972,0.44872157,59747.0,59746.0,0.40113428]
[1723970336329,0.44872157,59747.0,59746.0,0.40113423]
[1723970337410,0.21440057,59747.0,59746.0,0.40113423]
[1723970337608,0.21440057,59747.0,59746.0,0.40114228]
[1723970338982,0.44872157,59747.0,59746.0,0.40114228]
[1723970339623,0.21440057,59747.0,59746.0,0.40114228]
[1723970340702,0.44872157,59747.0,59746.0,0.40114228]
[1723970341085,0.44872157,59747.0,59746.0,0.40114227]
[1723970341499,0.7493208,59747.0,59746.0,0.40114227]
[1723970341733,0.9914208,59747.0,59746.0,0.45553913]
[1723970342160,0.9914208,59747.0,59746.0,0.009]
[1723970342361,0.9914208,59747.0,59746.0,0.05910947]
[1723970342760,1.0729208,59747.0,59746.0,0.05910947]
[1723970343102,1.3072418,59747.0,59746.0,0.05910947]
[1723970343506,1.3072418,59747.0,59746.0,0.009]
[1723970345297,1.24096357,59747.0,59746.0,0.05909624]
[1723970345520,1.24096357,59747.0,59746.0,0.009]
[1723970349443,1.24096357,59747.0,59746.0,1.509]
[1723970349654,1.24096357,59747.0,59746.0,0.009]
[1723970350189,1.09886357,59747.0,59746.0,0.05907872]
[1723970350595,1.09886357,59747.0,59746.0,0.009]
[1723970350947,1.09886357,59747.0,59746.0,0.05907872]
[1723970352548,1.01736357,59747.0,59746.0,0.05907872]
[1723970354348,1.01736357,59747.0,59746.0,0.006]
[1723970354590,1.01736357,59747.0,59746.0,0.002]
[1723970355011,1.01736357,59747.0,59746.0,0.007]
[1723970355392,1.01736357,59747.0,59746.0,0.08211048]
[1723970355796,1.01736357,59747.0,59746.0,0.007]
[1723970356444,1.01736357,59747.0,59746.0,0.08211048]
[1723970359537,1.01736357,59747.0,59746.0,0.0821133]
[1723970360496,1.01736357,59747.0,59746.0,0.47853269]
[1723970360748,1.01736357,59747.0,59746.0,0.47426495]
[1723970361242,1.01736357,59747.0,59746.0,0.47426665]
[1723970361731,1.01736357,59747.0,59746.0,0.45349565]
[1723970362224,1.01736357,59747.0,59746.0,0.08211402]
[1723970362653,1.01736357,59747.0,59746.0,0.45351129]
[1723970362900,1.04736357,59747.0,59746.0,0.05708299]
[1723970363395,1.04736357,59747.0,59746.0,0.007]
[1723970364431,1.17440993,59747.0,59746.0,0.007]
[1723970364904,1.17540993,59747.0,59746.0,0.007]
[1723970365921,1.12886357,59747.0,59746.0,0.007]
[1723970366656,1.04736357,59747.0,59746.0,0.007]
[1723970367576,1.12886357,59747.0,59746.0,0.007]
[1723970367781,1.26846357,59747.0,59746.0,0.007]
[1723970367987,1.26746357,59747.0,59746.0,0.007]
[1723970368184,1.27046357,59747.0,59746.0,0.007]
[1723970368322,1.39740993,59747.0,59746.0,0.007]
[1723970370449,1.27046357,59747.0,59746.0,0.005]
[1723970370878,1.27046357,59747.0,59744.0,0.0009075]
[1723970370879,0.823151,59745.0,59744.0,0.07605975]
[1723970371081,0.91684672,59745.0,59744.0,0.39309029]
[1723970371208,0.91684672,59745.0,59744.0,0.49328358]
[1723970371409,0.91684672,59745.0,59744.0,0.0009075]
[1723970371609,0.91684672,59745.0,59744.0,0.0509957]
[1723970372038,0.91884672,59745.0,59744.0,0.0509957]
[1723970372956,0.91884672,59745.0,59744.0,0.0519957]
[1723970373577,0.9288344,59745.0,59744.0,0.0519957]
[1723970376426,0.6945054,59745.0,59744.0,0.09782189]
[1723970376628,0.6945054,59745.0,59744.0,0.39407681]
[1723970376830,0.6945054,59745.0,59744.0,0.49427981]
[1723970378443,0.6945054,59745.0,59744.0,0.46922165]
[1723970378823,0.6945054,59745.0,59744.0,0.44844547]
[1723970379029,0.6945054,59745.0,59744.0,0.07705234]
[1723970379238,0.6945054,59745.0,59744.0,0.0019075]
[1723970380273,0.6945054,59745.0,59744.0,0.07705234]
[1723970381785,0.6945054,59745.0,59744.0,0.49428971]
[1723970382442,0.6945054,59745.0,59744.0,0.4692526]
[1723970382848,0.6945054,59745.0,59744.0,0.46924982]
[1723970384075,0.6945054,59745.0,59744.0,0.46925296]
[1723970384275,0.6945054,59745.0,59744.0,0.39409756]
[1723970384843,0.6945054,59745.0,59744.0,0.44848468]
[1723970385256,0.6945054,59745.0,59744.0,0.07707361]
[1723970385456,0.6945054,59745.0,59744.0,0.05202383]
[1723970385705,0.6953304,59745.0,59744.0,0.05202383]
[1723970386820,0.6953304,59745.0,59744.0,0.49427059]
[1723970387118,0.6953304,59745.0,59744.0,0.63967147]
[1723970387325,0.6953304,59745.0,59744.0,0.26828371]
[1723970387476,0.6953304,59745.0,59744.0,0.63969062]
[1723970387681,0.6953304,59745.0,59744.0,0.63969115]
[1723970389625,0.6953304,59745.0,59744.0,0.57449115]
[1723970389936,0.6953304,59745.0,59744.0,0.52867171]
[1723970390133,0.6953304,59745.0,59744.0,0.44847171]
[1723970392144,0.6953304,59745.0,59744.0,0.61954466]
[1723970392353,0.6953304,59745.0,59744.0,0.47352087]
[1723970392517,0.6953304,59745.0,59744.0,0.44847022]
[1723970392726,0.6953304,59745.0,59744.0,0.49429291]
[1723970393122,0.6953304,59745.0,59744.0,0.3940866]
[1723970396683,0.6953304,59745.0,59744.0,0.49429291]
[1723970396864,0.6953304,59745.0,59744.0,0.45061456]
[1723970397087,0.6953304,59745.0,59744.0,0.47138485]
[1723970397215,0.6953304,59745.0,59744.0,0.47137684]
[1723970397640,0.6953304,59745.0,59744.0,0.59661569]
[1723970399597,0.6953304,59745.0,59744.0,0.59661658]
[1723970399817,0.6953304,59745.0,59744.0,0.57157319]
[1723970400058,0.6953304,59745.0,59744.0,0.0019075]
[1723970402577,0.6953304,59745.0,59744.0,0.51936282]
[1723970402699,0.09952072,59745.0,59744.0,0.65056562]
[1723970402894,0.09952072,59745.0,59744.0,0.53339962]
[1723970403147,0.09952072,59745.0,59744.0,0.65056562]
[1723970403341,0.002825,59745.0,59744.0,2.15056562]
[1723970403547,0.002825,59745.0,59744.0,2.12979333]
[1723970403752,0.002825,59745.0,59744.0,2.15055934]
[1723970405074,0.002825,59745.0,59744.0,2.1505051]
[1723970407520,0.002825,59745.0,59744.0,2.12973909]
[1723970407650,0.002825,59745.0,59744.0,2.15050508]
[1723970408549,0.002825,59745.0,59744.0,2.38483808]
[1723970408996,0.002825,59745.0,59744.0,3.05494279]
[1723970409196,0.002825,59745.0,59744.0,2.90472335]
[1723970409394,0.002825,59745.0,59744.0,3.054825]
[1723970409725,0.002825,59745.0,59744.0,2.6834505]
[1723970409926,0.002825,59745.0,59744.0,3.05479659]
[1723970410592,1e-08,59745.0,59744.0,3.17262225]
[1723970410769,1e-08,59745.0,59744.0,3.40695525]
[1723970410992,1e-08,59745.0,59744.0,3.68704914]
[1723970411416,1e-08,59745.0,59744.0,3.40695525]
[1723970411773,1e-08,59745.0,59744.0,3.60317254]
[1723970411967,1e-08,59745.0,59744.0,3.68602216]
[1723970412266,1e-08,59745.0,59744.0,3.64057489]
[1723970412637,1e-08,59745.0,59744.0,3.64957489]
[1723970412860,0.000825,59747.0,59746.0,0.585812]
[1723970413000,0.000825,59747.0,59746.0,1.72189793]
[1723970413248,0.000825,59747.0,59746.0,1.75548485]
[1723970413425,0.000825,59747.0,59746.0,3.25548485]
[1723970414207,0.000825,59747.0,59746.0,3.26548485]
[1723970414412,0.000825,59747.0,59746.0,2.74560032]
[1723970414642,0.000825,59747.0,59746.0,3.23189793]
[1723970414852,0.000825,59747.0,59746.0,2.7120134]
[1723970414981,0.000825,59747.0,59746.0,3.23189793]
[1723970415178,0.000825,59747.0,59746.0,2.72819723]
[1723970415380,0.000825,59747.0,59746.0,2.7190134]
[1723970416030,0.000825,59747.0,59746.0,2.69825809]
[1723970416252,0.000825,59747.0,59746.0,2.71901188]
[1723970418427,0.000825,59747.0,59746.0,2.86879486]
[1723970418758,0.000825,59747.0,59746.0,3.10311986]
[1723970419951,0.000825,59747.0,59746.0,2.86879486]
[1723970420354,0.000825,59747.0,59746.0,2.71901188]
[1723970421002,0.000825,59747.0,59746.0,2.69825809]
[1723970421178,0.000825,59747.0,59746.0,2.7190094]
[1723970423590,0.000825,59747.0,59746.0,2.34766331]
[1723970423797,0.000825,59747.0,59746.0,2.71896572]
[1723970425577,1e-08,59747.0,59746.0,2.71896572]
[1723970429353,1e-08,59747.0,59746.0,2.71896136]
[1723970431184,1e-08,59747.0,59746.0,2.95328636]
[1723970431594,1e-08,59747.0,59746.0,2.98685604]
[1723970431734,1e-08,59747.0,59746.0,3.02165778]
[1723970432339,1e-08,59747.0,59746.0,3.68486232]
[1723970432549,0.00824,59753.0,59752.0,1.044853]
[1723970432749,0.00824,59753.0,59752.0,1.79287295]
[1723970432956,0.00824,59753.0,59752.0,1.82644263]
[1723970433157,0.00824,59753.0,59752.0,3.32644263]
[1723970433760,0.00824,59753.0,59752.0,3.38885034]
[1723970433988,0.00824,59753.0,59752.0,3.25050131]
[1723970434200,0.00824,59753.0,59752.0,3.38881448]
[1723970434590,0.00824,59753.0,59752.0,3.38881259]
[1723970434990,0.00824,59753.0,59752.0,3.27488425]
[1723970435195,0.00824,59753.0,59752.0,3.38881384]
[1723970436002,0.00824,59753.0,59752.0,3.90863722]
[1723970436206,0.00824,59753.0,59752.0,3.1357593]
[1723970436408,0.00824,59753.0,59752.0,2.7749447]
[1723970436611,0.00824,59753.0,59752.0,2.7709447]
[1723970436824,0.00824,59753.0,59752.0,2.73738471]
[1723970437411,0.00824,59753.0,59752.0,2.75138471]
[1723970437950,0.00824,59753.0,59752.0,2.76538471]
[1723970438099,0.00824,59753.0,59752.0,2.75138471]
[1723970438308,0.00824,59753.0,59752.0,2.79895043]
[1723970439304,0.00824,59753.0,59752.0,1.98839843]
[1723970439504,0.00824,59753.0,59752.0,2.0795155]
[1723970439748,0.00824,59753.0,59752.0,1.95483271]
[1723970439950,0.00824,59753.0,59752.0,2.05459083]
[1723970440202,0.00824,59753.0,59752.0,1.95483271]
[1723970440356,0.00824,59753.0,59752.0,1.94083271]
[1723970440571,0.0607,59754.0,59752.0,1.92683271]
[1723970440771,0.0607,59754.0,59753.0,0.52660404]
[1723970440945,0.117146,59754.0,59753.0,0.52660404]
[1723970441129,0.117144,59756.0,59753.0,0.52660404]
[1723970441324,0.21236915,59756.0,59755.0,0.07484149]
[1723970441628,0.21236915,59756.0,59755.0,0.13037179]
[1723970441827,0.44665515,59756.0,59755.0,0.13037179]
[1723970442034,0.21236915,59756.0,59755.0,0.07063529]
[1723970442232,0.44665515,59756.0,59755.0,0.02073867]
[1723970442430,0.44665515,59756.0,59755.0,0.0706488]
[1723970443047,0.21236915,59756.0,59755.0,1.5706488]
[1723970443280,0.21236915,59756.0,59755.0,1.52073867]
[1723970443451,0.21236915,59756.0,59755.0,0.02073867]
[1723970443856,0.21236915,59756.0,59755.0,0.02673867]
[1723970444055,0.44665515,59756.0,59755.0,1.53573867]
[1723970444339,0.44665515,59756.0,59755.0,1.61058016]
[1723970444757,0.44665515,59756.0,59755.0,0.1105918]
[1723970445217,0.44665515,59756.0,59755.0,0.48189397]
[1723970445970,0.21236915,59756.0,59755.0,0.48189397]
[1723970446382,0.0002,59759.0,59757.0,0.11714]
[1723970446555,0.0002,59759.0,59758.0,0.52672722]
[1723970446755,0.0002,59759.0,59758.0,0.49191615]
[1723970447112,0.0002,59759.0,59758.0,0.52672737]
[1723970447527,0.0002,59759.0,59758.0,0.49191739]
[1723970448305,0.0002,59759.0,59758.0,0.39802708]
[1723970448657,0.0002,59759.0,59758.0,0.51516638]
[1723970448769,0.0609,59759.0,59758.0,0.49441577]
[1723970448967,0.0609,59759.0,59758.0,0.39802767]
[1723970449231,0.0609,59759.0,59758.0,1.89802767]
[1723970449459,0.0002,59759.0,59758.0,1.89802767]
[1723970450032,0.0002,59759.0,59758.0,1.89802768]
[1723970450240,0.0002,59759.0,59758.0,2.02289057]
[1723970450402,0.0002,59759.0,59758.0,2.02489057]
[1723970452170,0.0002,59759.0,59758.0,1.90002768]
[1723970452373,0.0002,59759.0,59758.0,0.53952768]
[1723970452579,0.59264607,59759.0,59758.0,0.52500468]
[1723970452795,0.59264607,59759.0,59758.0,0.40002768]
[1723970452796,0.82692007,59759.0,59758.0,0.40002768]
[1723970452999,0.82692007,59759.0,59758.0,0.50001345]
[1723970453238,0.82692007,59759.0,59758.0,0.4000295]
[1723970454348,0.82692007,59759.0,59758.0,0.5250065]
[1723970456373,0.82692007,59759.0,59758.0,2.0250065]
[1723970457780,0.82774507,59759.0,59758.0,2.0250065]